fUSD/lending_fUSD_20240614
["ID","MTS","AMOUNT","RATE_DAILY","PERIOD"]
[329484344,1718388707340,-23624.53022578,0.00023858,2]
[329484345,1718388707351,-234.13860495,0.00023858,2]
[329484346,1718388707368,-399.21183,0.0002386,7]
[329484347,1718388707379,-399.21183,0.0002386,7]
[329484348,1718388707405,-1608.81,0.0002386,3]
[329484349,1718388707424,-64814.96786232,0.00023861,2]
[329484350,1718388707448,-331.54232401,0.00023861,2]
[329484351,1718388707856,-500.0,0.00021917,2]
[329484352,1718388707884,-2205.41526615,0.00023861,2]
[329484370,1718389834156,-543.2167885,0.00014881,2]
[329484373,1718389834183,-519.16694675,0.00014882,2]
[329484375,1718389834204,-155.0,0.00014883,2]
[329484376,1718389834249,-2824.58309854,0.00014883,2]
[329484377,1718389834263,-4214.2835,0.0001512,2]
[329484378,1718389834278,-525.42,0.00018054,2]
[329484379,1718389834297,-293.74,0.00019452,2]
[329484380,1718389834308,-499.99,0.00019452,2]
[329484381,1718389834322,-338.26,0.00019726,2]
[329484382,1718389834349,-3248.44,0.00020016,2]
[329484383,1718389834362,-226.78109354,0.000201,2]
[329484384,1718389834375,-173.47,0.00020189,2]
[329484385,1718389834394,-302.78,0.00020233,2]
[329484386,1718389834416,-12773.09182141,0.00020235,2]
[329484387,1718389834432,-11126.90817859,0.00020235,2]
[329484388,1718389834459,-204.74,0.00020302,2]
[329484389,1718389834520,-525.42,0.00020318,2]
[329484390,1718389834544,-250.0,0.00020467,2]
[329484391,1718389834591,-250.0,0.00020582,2]
[329484392,1718389834617,-424.35038744,0.0002071,2]
[329484393,1718389834635,-177.68,0.00020737,2]
[329484394,1718389834647,-299.99,0.00020935,7]
[329484395,1718389834659,-757.34625938,0.00020957,2]
[329484396,1718389834675,-1000.0,0.00020989,2]
[329484397,1718389834695,-1250.0,0.00021,2]
[329484398,1718389834710,-306.95,0.00021808,2]
[329484399,1718389834750,-190.75780564,0.00021814,2]
[329484400,1718389834762,-17137.63814891,0.00021817,2]
[329484401,1718389834800,-175.92510571,0.00021817,2]
[329484402,1718389834814,-184.37757927,0.00021817,2]
[329484403,1718389834830,-184.29208948,0.00021817,2]
[329484404,1718389834841,-1294.59699274,0.0002186,2]
[329484405,1718389834854,-1249.34786736,0.00021893,2]
[329484406,1718389834869,-127412.54896,0.00021895,2]
[329484407,1718389834881,-189.92070065,0.00021897,2]
[329484408,1718389834900,-31524.87124205,0.00021897,2]
[329484409,1718389834914,-3394.03843714,0.00021897,2]
[329484410,1718389835082,-2246.56936434,0.00021897,2]
[329484411,1718389835112,-299.99,0.00021897,2]
[329484412,1718389835128,-1101.00994531,0.00021897,2]
[329484413,1718389835148,-63336.11969916,0.00021897,2]
[329484415,1718389839811,-280.0,0.0001488,2]
[329484416,1718389839847,-2822.76307355,0.0001488,2]
[329484417,1718389839858,-326.23244423,0.00021806,2]
[329484418,1718389839879,-1862.60448222,0.00021897,2]
[329484419,1718389839893,-23647.34578978,0.00021897,2]
[329484420,1718389839911,-151.7,0.00021897,2]
[329484421,1718389839928,-151.7,0.00021897,2]
[329484422,1718389839969,-898.01671267,0.000219,2]
[329484423,1718389840006,-572.78982099,0.00021904,7]
[329484424,1718389840017,-44437.79884207,0.00021905,2]
[329484425,1718389840031,-57592.10545846,0.00021905,2]
[329484426,1718389840512,-209006.58751544,0.00021905,2]
[329484427,1718389840534,-71020.34137647,0.00021905,2]
[329484428,1718389840545,-488.76158195,0.00021906,2]
[329484429,1718389840565,-443.29297293,0.00021906,2]
[329484430,1718389840579,-390.40222809,0.00021906,2]
[329484431,1718389840614,-209.4692494,0.00021906,2]
[329484432,1718389840636,-280307.607712,0.00021907,2]
[329484433,1718389840665,-151.7,0.00021907,2]
[329484434,1718389840692,-151.7,0.00021907,2]
[329484436,1718389840722,-155.0,0.00021914,2]
[329484437,1718389840760,-155.0,0.00021914,2]
[329484438,1718389840784,-659.07845299,0.00021914,2]
[329484439,1718389840798,-689.62503831,0.00021914,2]
[329484440,1718389840816,-156.67264725,0.00021914,2]
[329484441,1718389840841,-155.0,0.00021914,2]
[329484442,1718389840861,-789.32980989,0.00021914,2]
[329484443,1718389840877,-416.16490584,0.00021914,2]
[329484444,1718389840891,-797.47042113,0.00021915,2]
[329484445,1718389840912,-786.3940397,0.00021915,2]
[329484446,1718389840945,-180.33960977,0.00021915,2]
[329484447,1718389840965,-156.70708804,0.00021915,2]
[329484448,1718389840976,-490.61954782,0.00021915,2]
[329484449,1718389840992,-1000.0,0.00021915,2]
[329484450,1718389841036,-719.4340817,0.00021915,2]
[329484451,1718389841058,-3019.17951546,0.00021915,2]
[329484452,1718389841086,-285.24365879,0.00021915,2]
[329484453,1718389841108,-2485.09344287,0.00021915,2]
[329484454,1718389841121,-1427.04327615,0.00021915,2]
[329484455,1718389841147,-8169.77263668,0.00021915,2]
[329484456,1718389841158,-621.20003601,0.00021915,2]
[329484457,1718389841173,-155.0,0.00021915,2]
[329484458,1718389841187,-155.11733963,0.00021915,2]
[329484459,1718389841203,-545.84909757,0.00021915,2]
[329484460,1718389841243,-1791.56222238,0.00021916,2]
[329484461,1718389841276,-226.06801817,0.00021917,2]
[329484462,1718389841288,-9010.63673863,0.00021917,2]
[329484463,1718389841300,-500.0,0.00021917,2]
[329484464,1718389841324,-204.22557533,0.00021917,2]
[329484465,1718389841349,-510.45203996,0.00021917,2]
[329484466,1718389841374,-500.0,0.00021917,2]
[329484467,1718389841413,-500.0,0.00021917,2]
[329484468,1718389841424,-500.0,0.00021917,2]
[329484469,1718389841438,-500.0,0.00021917,2]
[329484470,1718389841463,-500.0,0.00021917,2]
[329484471,1718389841479,-271.47943291,0.00021917,2]
[329484472,1718389841503,-532.86905255,0.00021917,2]
[329484473,1718389841529,-500.0,0.00021917,2]
[329484474,1718389841546,-724.11,0.00021917,2]
[329484475,1718389841564,-262.54380136,0.00021917,2]
[329484476,1718389841581,-500.0,0.00021917,2]
[329484477,1718389841591,-500.0,0.00021917,2]
[329484478,1718389841604,-500.0,0.00021917,2]
[329484479,1718389841623,-500.0,0.00021917,2]
[329484480,1718389841635,-500.0,0.00021917,2]
[329484481,1718389841677,-500.0,0.00021917,2]
[329484482,1718389841688,-500.0,0.00021917,2]
[329484483,1718389841702,-500.0,0.00021917,2]
[329484484,1718389841713,-502.79034946,0.00021917,2]
[329484485,1718389841725,-500.0,0.00021917,2]
[329484486,1718389841738,-500.0,0.00021917,2]
[329484487,1718389841751,-500.0,0.00021917,2]
[329484488,1718389841773,-374.56,0.00021917,2]
[329484489,1718389841790,-500.0,0.00021917,2]
[329484490,1718389841803,-500.0,0.00021917,2]
[329484491,1718389841831,-500.0,0.00021917,2]
[329484492,1718389841878,-500.0,0.00021917,2]
[329484493,1718389841888,-500.0,0.00021917,2]
[329484494,1718389841905,-500.0,0.00021917,2]
[329484495,1718389841924,-500.0,0.00021917,2]
[329484496,1718389841939,-500.0,0.00021917,2]
[329484497,1718389841950,-500.0,0.00021917,2]
[329484498,1718389841961,-500.0,0.00021917,2]
[329484499,1718389841972,-500.0,0.00021917,2]
[329484500,1718389841989,-500.0,0.00021917,2]
[329484501,1718389842004,-447.63968326,0.00021917,2]
[329484502,1718389842028,-500.0,0.00021917,2]
[329484503,1718389842052,-500.0,0.00021917,2]
[329484504,1718389842070,-500.0,0.00021917,2]
[329484505,1718389842089,-500.0,0.00021917,2]
[329484506,1718389842103,-591.59686805,0.00021917,2]
[329484507,1718389842130,-500.0,0.00021917,2]
[329484508,1718389842154,-500.0,0.00021917,2]
[329484509,1718389842183,-500.0,0.00021917,2]
[329484510,1718389842205,-500.0,0.00021917,2]
[329484511,1718389842233,-580.65411859,0.00021917,2]
[329484512,1718389842273,-500.0,0.00021917,2]
[329484513,1718389842324,-212.64853305,0.00021917,2]
[329484514,1718389842345,-500.0,0.00021917,2]
[329484515,1718389842366,-500.0,0.00021917,2]
[329484516,1718389842385,-500.0,0.00021917,2]
[329484517,1718389842402,-500.0,0.00021917,2]
[329484518,1718389842418,-500.0,0.00021917,2]
[329484519,1718389842432,-500.0,0.00021917,2]
[329484520,1718389842447,-500.0,0.00021917,2]
[329484521,1718389842462,-500.0,0.00021917,2]
[329484522,1718389842479,-500.0,0.00021917,2]
[329484523,1718389842492,-479.18956553,0.00021917,2]
[329484524,1718389842504,-500.0,0.00021917,2]
[329484525,1718389842518,-500.0,0.00021917,2]
[329484526,1718389842532,-500.0,0.00021917,2]
[329484527,1718389842553,-500.0,0.00021917,2]
[329484528,1718389842573,-500.0,0.00021917,2]
[329484529,1718389842590,-500.0,0.00021917,2]
[329484530,1718389842614,-500.0,0.00021917,2]
[329484531,1718389842644,-500.0,0.00021917,2]
[329484532,1718389842667,-500.0,0.00021917,2]
[329484533,1718389842704,-500.0,0.00021917,2]
[329484534,1718389842718,-500.0,0.00021917,2]
[329484535,1718389842734,-500.0,0.00021917,2]
[329484536,1718389842757,-514.29186605,0.00021917,2]
[329484537,1718389842777,-500.0,0.00021917,2]
[329484538,1718389842806,-500.0,0.00021917,2]
[329484539,1718389842824,-505.91616701,0.00021917,2]
[329484540,1718389842838,-500.0,0.00021917,2]
[329484541,1718389842877,-514.17245947,0.00021917,2]
[329484542,1718389842896,-500.0,0.00021917,2]
[329484543,1718389842928,-530.64954924,0.00021917,2]
[329484544,1718389842946,-500.0,0.00021917,2]
[329484545,1718389842980,-502.89750854,0.00021917,2]
[329484546,1718389843013,-500.0,0.00021917,2]
[329484547,1718389843029,-500.0,0.00021917,2]
[329484548,1718389843042,-500.0,0.00021917,2]
[329484549,1718389843068,-507.49086433,0.00021917,2]
[329484550,1718389843081,-688.1,0.00021917,2]
[329484551,1718389843112,-500.0,0.00021917,2]
[329484552,1718389843143,-500.0,0.00021917,2]
[329484553,1718389843166,-560.85,0.00021917,2]
[329484554,1718389843205,-500.0,0.00021917,2]
[329484555,1718389843221,-158.15742094,0.00021917,2]
[329484556,1718389843234,-500.0,0.00021917,2]
[329484557,1718389843249,-500.0,0.00021917,2]
[329484558,1718389843263,-500.0,0.00021917,2]
[329484559,1718389843275,-500.0,0.00021917,2]
[329484560,1718389843287,-500.0,0.00021917,2]
[329484561,1718389843299,-500.0,0.00021917,2]
[329484562,1718389843312,-500.0,0.00021917,2]
[329484563,1718389843329,-500.0,0.00021917,2]
[329484564,1718389843346,-500.0,0.00021917,2]
[329484566,1718389843378,-500.0,0.00021917,2]
[329484567,1718389843397,-500.0,0.00021917,2]
[329484568,1718389843420,-500.0,0.00021917,2]
[329484569,1718389843447,-500.0,0.00021917,2]
[329484570,1718389843464,-500.0,0.00021917,2]
[329484571,1718389843482,-500.0,0.00021917,2]
[329484572,1718389843495,-500.0,0.00021917,2]
[329484573,1718389843508,-222.13163142,0.00021917,2]
[329484574,1718389843527,-500.0,0.00021917,2]
[329484575,1718389843549,-500.0,0.00021917,2]
[329484576,1718389843574,-500.0,0.00021917,2]
[329484577,1718389843595,-500.0,0.00021917,2]
[329484578,1718389843617,-371.71860872,0.00021917,2]
[329484579,1718389843636,-500.0,0.00021917,2]
[329484580,1718389843654,-500.0,0.00021917,2]
[329484581,1718389843673,-500.0,0.00021917,2]
[329484582,1718389843700,-500.0,0.00021917,2]
[329484583,1718389843729,-893.93,0.00021917,2]
[329484584,1718389843744,-500.0,0.00021917,2]
[329484585,1718389843766,-295.83967052,0.00021917,2]
[329484586,1718389843819,-525.7,0.00021917,2]
[329484589,1718389843843,-583.09638106,0.00021917,2]
[329484590,1718389843857,-500.0,0.00021917,2]
[329484592,1718389843877,-500.0,0.00021917,2]
[329484595,1718389843899,-500.0,0.00021917,2]
[329484597,1718389843924,-500.0,0.00021917,2]
[329484599,1718389843943,-500.0,0.00021917,2]
[329484601,1718389843958,-785.49,0.00021917,2]
[329484603,1718389843981,-500.0,0.00021917,2]
[329484606,1718389844020,-500.0,0.00021917,2]
[329484607,1718389844068,-986.68,0.00021917,2]
[329484608,1718389844132,-500.0,0.00021917,2]
[329484609,1718389844164,-634.34704757,0.00021917,2]
[329484610,1718389844190,-500.0,0.00021917,2]
[329484611,1718389844204,-500.0,0.00021917,2]
[329484612,1718389844225,-500.0,0.00021917,2]
[329484613,1718389844240,-500.0,0.00021917,2]
[329484614,1718389844257,-500.0,0.00021917,2]
[329484615,1718389844281,-500.0,0.00021917,2]
[329484616,1718389844295,-500.0,0.00021917,2]
[329484617,1718389844312,-500.0,0.00021917,2]
[329484618,1718389844356,-500.0,0.00021917,2]
[329484619,1718389844374,-500.0,0.00021917,2]
[329484620,1718389844393,-500.0,0.00021917,2]
[329484621,1718389844411,-500.0,0.00021917,2]
[329484622,1718389844440,-500.0,0.00021917,2]
[329484623,1718389844479,-500.0,0.00021917,2]
[329484624,1718389844496,-639.66981082,0.00021917,2]
[329484625,1718389844527,-500.0,0.00021917,2]
[329484626,1718389844548,-500.0,0.00021917,2]
[329484627,1718389844562,-500.0,0.00021917,2]
[329484629,1718389844587,-500.0,0.00021917,2]
[329484631,1718389844612,-500.0,0.00021917,2]
[329484632,1718389844628,-500.0,0.00021917,2]
[329484633,1718389844653,-500.0,0.00021917,2]
[329484634,1718389844669,-500.0,0.00021917,2]
[329484635,1718389844686,-500.0,0.00021917,2]
[329484636,1718389844705,-500.0,0.00021917,2]
[329484637,1718389844722,-500.0,0.00021917,2]
[329484638,1718389844742,-500.0,0.00021917,2]
[329484639,1718389844757,-500.0,0.00021917,2]
[329484640,1718389844777,-500.0,0.00021917,2]
[329484641,1718389844793,-500.0,0.00021917,2]
[329484642,1718389844808,-500.0,0.00021917,2]
[329484643,1718389844825,-500.0,0.00021917,2]
[329484644,1718389844851,-500.0,0.00021917,2]
[329484645,1718389844864,-500.0,0.00021917,2]
[329484646,1718389844903,-670.2,0.00021917,2]
[329484647,1718389844929,-500.0,0.00021917,2]
[329484648,1718389844946,-500.0,0.00021917,2]
[329484649,1718389844960,-500.0,0.00021917,2]
[329484650,1718389844974,-500.0,0.00021917,2]
[329484651,1718389845016,-500.0,0.00021917,2]
[329484652,1718389845065,-500.0,0.00021917,2]
[329484656,1718389845112,-500.0,0.00021917,2]
[329484659,1718389845131,-211.95683177,0.00021917,2]
[329484663,1718389845156,-500.0,0.00021917,2]
[329484669,1718389845181,-500.0,0.00021917,2]
[329484671,1718389845214,-545.71163896,0.00021917,2]
[329484674,1718389845231,-500.0,0.00021917,2]
[329484676,1718389845246,-500.0,0.00021917,2]
[329484678,1718389845259,-500.0,0.00021917,2]
[329484680,1718389845274,-500.0,0.00021917,2]
[329484682,1718389845294,-500.0,0.00021917,2]
[329484684,1718389845308,-500.0,0.00021917,2]
[329484686,1718389845322,-10215.91392912,0.00021917,2]
[329484687,1718389845343,-500.0,0.00021917,2]
[329484688,1718389845360,-500.0,0.00021917,2]
[329484689,1718389845376,-500.0,0.00021917,2]
[329484690,1718389845394,-500.0,0.00021917,2]
[329484691,1718389845412,-500.0,0.00021917,2]
[329484692,1718389845442,-500.0,0.00021917,2]
[329484693,1718389845456,-500.0,0.00021917,2]
[329484694,1718389845475,-500.0,0.00021917,2]
[329484695,1718389845491,-500.0,0.00021917,2]
[329484696,1718389845510,-500.0,0.00021917,2]
[329484697,1718389845529,-500.0,0.00021917,2]
[329484698,1718389845543,-500.0,0.00021917,2]
[329484699,1718389845561,-500.0,0.00021917,2]
[329484700,1718389845581,-500.0,0.00021917,2]
[329484701,1718389845597,-500.0,0.00021917,2]
[329484702,1718389845622,-501.62,0.00021917,2]
[329484703,1718389845651,-500.0,0.00021917,2]
[329484704,1718389845672,-500.0,0.00021917,2]
[329484705,1718389845692,-500.0,0.00021917,2]
[329484706,1718389845708,-500.0,0.00021917,2]
[329484707,1718389845722,-500.0,0.00021917,2]
[329484708,1718389845753,-500.0,0.00021917,2]
[329484709,1718389845768,-500.0,0.00021917,2]
[329484710,1718389845783,-500.0,0.00021917,2]
[329484711,1718389845805,-500.0,0.00021917,2]
[329484712,1718389845821,-500.0,0.00021917,2]
[329484713,1718389845835,-500.0,0.00021917,2]
[329484714,1718389845863,-571.28615476,0.00021917,2]
[329484715,1718389845887,-500.0,0.00021917,2]
[329484716,1718389845908,-500.0,0.00021917,2]
[329484717,1718389845924,-500.0,0.00021917,2]
[329484718,1718389845937,-500.0,0.00021917,2]
[329484719,1718389845949,-500.0,0.00021917,2]
[329484720,1718389845967,-500.0,0.00021917,2]
[329484721,1718389845981,-500.0,0.00021917,2]
[329484722,1718389845993,-500.0,0.00021917,2]
[329484723,1718389846030,-500.0,0.00021917,2]
[329484724,1718389846047,-500.0,0.00021917,2]
[329484725,1718389846060,-500.0,0.00021917,7]
[329484726,1718389846075,-500.0,0.00021917,2]
[329484727,1718389846121,-528.49267838,0.00021917,2]
[329484728,1718389846138,-500.0,0.00021917,2]
[329484729,1718389846180,-500.0,0.00021917,2]
[329484730,1718389846248,-500.0,0.00021917,2]
[329484731,1718389846266,-500.0,0.00021917,2]
[329484732,1718389846621,-500.0,0.00021917,2]
[329484733,1718389846686,-500.0,0.00021917,2]
[329484734,1718389846728,-500.0,0.00021917,2]
[329484735,1718389846743,-500.0,0.00021917,2]
[329484736,1718389846768,-500.0,0.00021917,2]
[329484737,1718389846782,-500.0,0.00021917,2]
[329484738,1718389846795,-500.0,0.00021917,2]
[329484739,1718389846808,-500.0,0.00021917,2]
[329484740,1718389846836,-633.08,0.00021917,2]
[329484741,1718389846848,-378.41592655,0.00021917,2]
[329484742,1718389846877,-500.0,0.00021917,2]
[329484743,1718389846905,-500.0,0.00021917,2]
[329484746,1718389846928,-500.0,0.00021917,2]
[329484749,1718389846951,-500.0,0.00021917,2]
[329484753,1718389846996,-500.0,0.00021917,2]
[329484756,1718389847012,-500.0,0.00021917,2]
[329484757,1718389847033,-500.0,0.00021917,2]
[329484759,1718389847045,-507.21076286,0.00021917,2]
[329484761,1718389847057,-509.0376282,0.00021917,2]
[329484763,1718389847071,-519.16698308,0.00021917,2]
[329484765,1718389847094,-500.0,0.00021917,2]
[329484766,1718389847108,-500.0,0.00021917,2]
[329484767,1718389847128,-500.0,0.00021917,2]
[329484768,1718389847141,-500.0,0.00021917,2]
[329484769,1718389847154,-500.0,0.00021917,2]
[329484770,1718389847165,-500.0,0.00021917,2]
[329484771,1718389847182,-500.0,0.00021917,2]
[329484772,1718389847197,-510.03204715,0.00021917,2]
[329484773,1718389847210,-500.0,0.00021917,2]
[329484774,1718389847224,-500.0,0.00021917,2]
[329484775,1718389847237,-500.0,0.00021917,2]
[329484776,1718389847251,-500.0,0.00021917,2]
[329484777,1718389847263,-500.0,0.00021917,2]
[329484778,1718389847278,-500.0,0.00021917,2]
[329484779,1718389847292,-500.0,0.00021917,2]
[329484780,1718389847307,-508.00616376,0.00021917,2]
[329484781,1718389847321,-500.0,0.00021917,2]
[329484782,1718389847367,-500.0,0.00021917,2]
[329484783,1718389847385,-500.0,0.00021917,2]
[329484784,1718389847401,-500.0,0.00021917,2]
[329484785,1718389847441,-500.0,0.00021917,2]
[329484786,1718389847452,-500.0,0.00021917,2]
[329484787,1718389847464,-500.0,0.00021917,2]
[329484788,1718389847479,-500.0,0.00021917,2]
[329484789,1718389847490,-508.98172607,0.00021917,2]
[329484790,1718389847502,-500.0,0.00021917,2]
[329484791,1718389847523,-1325.69,0.00021917,2]
[329484793,1718389847534,-509.16282362,0.00021917,2]
[329484794,1718389847547,-500.0,0.00021917,2]
[329484796,1718389847572,-500.0,0.00021917,2]
[329484797,1718389847587,-476.47255224,0.00021917,2]
[329484798,1718389847600,-637.0771954,0.00021917,2]
[329484799,1718389847636,-500.0,0.00021917,2]
[329484800,1718389847650,-509.37177999,0.00021917,2]
[329484801,1718389847700,-150.0,0.00021917,2]
[329484802,1718389847718,-500.0,0.00021917,2]
[329484803,1718389847740,-634.52495924,0.00021917,2]
[329484804,1718389847754,-502.89697178,0.00021917,2]
[329484805,1718389847777,-500.0,0.00021917,2]
[329484806,1718389847799,-506.99640169,0.00021917,2]
[329484807,1718389847816,-500.0,0.00021917,2]
[329484808,1718389847835,-500.0,0.00021917,2]
[329484809,1718389847846,-665.04,0.00021917,2]
[329484810,1718389847858,-500.0,0.00021917,2]
[329484811,1718389847897,-500.0,0.00021917,2]
[329484812,1718389847917,-500.0,0.00021917,2]
[329484813,1718389847933,-500.0,0.00021917,2]
[329484814,1718389847961,-500.0,0.00021917,2]
[329484815,1718389847978,-438.76,0.00021917,2]
[329484816,1718389847999,-500.0,0.00021917,2]
[329484817,1718389848035,-500.0,0.00021917,2]
[329484818,1718389848051,-500.0,0.00021917,2]
[329484819,1718389848064,-500.0,0.00021917,2]
[329484820,1718389848090,-500.0,0.00021917,2]
[329484821,1718389848112,-506.24893441,0.00021917,2]
[329484822,1718389848130,-500.0,0.00021917,2]
[329484823,1718389848145,-500.0,0.00021917,2]
[329484824,1718389848161,-500.0,0.00021917,2]
[329484825,1718389848175,-500.0,0.00021917,2]
[329484826,1718389848186,-500.0,0.00021917,2]
[329484827,1718389848206,-500.0,0.00021917,2]
[329484828,1718389848229,-500.0,0.00021917,2]
[329484829,1718389848272,-476.56012934,0.00021917,2]
[329484830,1718389848290,-500.0,0.00021917,2]
[329484831,1718389848305,-500.0,0.00021917,2]
[329484832,1718389848325,-500.0,0.00021917,2]
[329484833,1718389848357,-500.0,0.00021917,2]
[329484834,1718389848382,-500.0,0.00021917,2]
[329484835,1718389848401,-500.0,0.00021917,2]
[329484836,1718389848413,-500.0,0.00021917,2]
[329484837,1718389848440,-592.49,0.00021917,2]
[329484838,1718389848455,-630.8,0.00021917,2]
[329484839,1718389848487,-527.1089148,0.00021917,2]
[329484840,1718389848517,-155.77000043,0.00021917,2]
[329484841,1718389848546,-500.0,0.00021917,2]
[329484842,1718389848560,-500.0,0.00021917,2]
[329484843,1718389848573,-573.93,0.00021917,2]
[329484844,1718389848585,-500.0,0.00021917,2]
[329484845,1718389848638,-500.0,0.00021917,2]
[329484846,1718389848690,-500.0,0.00021917,2]
[329484847,1718389848703,-500.0,0.00021917,2]
[329484848,1718389848733,-500.0,0.00021917,2]
[329484849,1718389848752,-500.0,0.00021917,2]
[329484850,1718389848763,-500.0,0.00021917,2]
[329484851,1718389848774,-500.0,0.00021917,2]
[329484852,1718389848785,-500.0,0.00021917,2]
[329484853,1718389848856,-509.8913984,0.00021917,2]
[329484854,1718389848873,-736.46,0.00021917,2]
[329484855,1718389848884,-500.0,0.00021917,2]
[329484856,1718389848895,-500.0,0.00021917,2]
[329484857,1718389848943,-500.0,0.00021917,2]
[329484858,1718389848967,-500.0,0.00021917,2]
[329484859,1718389848980,-500.0,0.00021917,2]
[329484860,1718389848992,-500.0,0.00021917,2]
[329484861,1718389849005,-541.53857691,0.00021917,2]
[329484862,1718389849029,-500.0,0.00021917,2]
[329484863,1718389849041,-500.0,0.00021917,2]
[329484864,1718389849059,-500.0,0.00021917,2]
[329484865,1718389849070,-500.0,0.00021917,2]
[329484866,1718389849084,-500.0,0.00021917,2]
[329484867,1718389849119,-625.25,0.00021917,2]
[329484868,1718389849145,-500.0,0.00021917,2]
[329484869,1718389849171,-500.0,0.00021917,2]
[329484870,1718389849182,-500.0,0.00021917,2]
[329484871,1718389849200,-500.0,0.00021917,2]
[329484872,1718389849226,-500.0,0.00021917,2]
[329484873,1718389849250,-500.0,0.00021917,2]
[329484874,1718389849267,-494.09800765,0.00021917,2]
[329484875,1718389849313,-500.0,0.00021917,2]
[329484876,1718389849337,-500.0,0.00021917,2]
[329484877,1718389849393,-500.0,0.00021917,2]
[329484878,1718389849422,-500.0,0.00021917,2]
[329484879,1718389849439,-500.0,0.00021917,2]
[329484880,1718389849478,-500.0,0.00021917,2]
[329484881,1718389849506,-511.24074706,0.00021917,2]
[329484882,1718389849537,-500.0,0.00021917,2]
[329484883,1718389849562,-500.0,0.00021917,2]
[329484884,1718389849575,-500.0,0.00021917,2]
[329484885,1718389849597,-500.0,0.00021917,2]
[329484886,1718389849608,-500.0,0.00021917,2]
[329484887,1718389849618,-500.0,0.00021917,2]
[329484888,1718389849639,-500.0,0.00021917,2]
[329484889,1718389849653,-500.0,0.00021917,2]
[329484890,1718389849664,-500.0,0.00021917,2]
[329484891,1718389849682,-500.0,0.00021917,2]
[329484892,1718389849693,-500.0,0.00021917,2]
[329484893,1718389849703,-500.0,0.00021917,2]
[329484894,1718389849728,-500.0,0.00021917,2]
[329484895,1718389849752,-500.0,0.00021917,2]
[329484896,1718389849778,-500.0,0.00021917,2]
[329484897,1718389849789,-500.0,0.00021917,2]
[329484898,1718389849799,-500.0,0.00021917,2]
[329484899,1718389849824,-941.5,0.00021917,2]
[329484900,1718389849835,-500.0,0.00021917,2]
[329484901,1718389849847,-500.0,0.00021917,2]
[329484902,1718389849860,-500.0,0.00021917,2]
[329484903,1718389849872,-524.97,0.00021917,2]
[329484904,1718389849895,-500.0,0.00021917,2]
[329484905,1718389849910,-500.0,0.00021917,2]
[329484906,1718389849922,-500.0,0.00021917,2]
[329484907,1718389849933,-500.0,0.00021917,2]
[329484908,1718389849943,-500.0,0.00021917,2]
[329484909,1718389849956,-500.0,0.00021917,2]
[329484910,1718389849974,-500.0,0.00021917,2]
[329484911,1718389849984,-500.0,0.00021917,2]
[329484912,1718389849995,-500.0,0.00021917,2]
[329484913,1718389850006,-513.35554871,0.00021917,2]
[329484914,1718389850043,-500.0,0.00021917,2]
[329484915,1718389850056,-540.91102613,0.00021917,2]
[329484916,1718389850097,-500.0,0.00021917,2]